Cogmind - Beta 13 @@@ ROGUE MODE // 2024.07.04 @ 21:26:17 Player: Attma Result: Destroyed by G-34 Mercenary with Small Laser Performance ------------- Evolutions (1) 500 Regions Visited (3) 600 Robots Destroyed (85) 425 Value Destroyed (1861) 1861 Prototype IDs (2) 40 Alien Tech Used (0) 0 Bonus (69) 69 TOTAL SCORE: 3495 Bonus ------- High Alert Combat Kills 69 Cogmind --------- Core Integrity 0/400 Matter 225/300 Energy 68/100 System Corruption 0% Temperature Danger (473) Movement Treading (305) Ox2 Location -9/Materials Parts ------- > --- POWER (1) -------- (None) > --- PROPULSION (3) --- Advanced Treads Advanced Treads Advanced Treads > --- UTILITY (3) ------ Cargo Storage Unit Light Armor Plating > --- WEAPON (2) ------- Beam Cannon Beam Cannon > --- INVENTORY (30) --- Hover Unit Hover Unit Disposable Heat Sink Disposable Heat Sink High-capacity Storage Unit Sensor Array Targeting Computer Recoil Stabilizer ECM Suite Power Shielding Utility Shielding Improved Weapon Shielding EM Shotgun Beam Cannon Assault Rifle Assault Rifle Heavy Assault Rifle Autogun Autogun Shotgun Datajack Mining Laser Maul Peak State ------------ > --- POWER ------------ Light Ion Engine > --- PROPULSION ------- Advanced Treads Advanced Treads Advanced Treads > --- UTILITY ---------- Cargo Storage Unit Light Armor Plating > --- WEAPON ----------- Beam Cannon Mining Laser > --- INVENTORY -------- Hover Unit Hover Unit Improved Hover Unit Improved Hover Unit Improved Flight Unit Disposable Heat Sink Disposable Heat Sink High-capacity Storage Unit Sensor Array Targeting Computer Recoil Stabilizer ECM Suite Power Shielding Utility Shielding Improved Weapon Shielding EM Shotgun Beam Cannon Beam Cannon Assault Rifle Assault Rifle Heavy Assault Rifle Autogun Autogun Shotgun Datajack Maul [Rating: 19] Favorites ----------- Power Light Ion Engine Engine Light Ion Engine Propulsion Wheel Treads Advanced Treads Leg Aluminum Leg Wheel Wheel Hover Unit Hover Unit Flight Unit Improved Flight Unit Utility Cargo Storage Unit Device Improved Heat Sink Storage Cargo Storage Unit Processor Visual Processing Unit Protection Backup Plating I Weapon Assault Rifle Energy Gun EM Shotgun Energy Cannon Beam Cannon Ballistic Gun Assault Rifle Ballistic Cannon Improved Light Cannon Launcher Grenade Launcher Special Weapon Mining Laser Build | -11 -10 -10 -9 ------- Run | Yrd Mat Min Mat Slots Evolved 2 | . . . 2 Power . | . . . . Propulsion 1 | . . . 1 Utility 1 | . . . 1 Weapon . | . . . . Parts Attached 72 | 4 14 4 50 Power 7 | 1 . . 6 Engine 7 | 1 . . 6 Core . | . . . . Reactor . | . . . . Propulsion 27 | 2 3 1 21 Treads 3 | . . . 3 Leg 2 | 2 . . . Wheel 17 | . 3 1 13 Hover 3 | . . . 3 Flight 2 | . . . 2 Utility 8 | . 3 . 5 Device 1 | . . . 1 Storage 3 | . 2 . 1 Processor 1 | . 1 . . Hackware . | . . . . Protection 3 | . . . 3 Artifact . | . . . . Weapon 30 | 1 8 3 18 Energy Gun 3 | . . . 3 Energy Cannon 7 | . . . 7 Ballistic Gun 11 | 1 5 1 4 Ballistic Cannon 2 | . . . 2 Launcher 6 | . 3 2 1 Special Weapon 1 | . . . 1 Impact Weapon . | . . . . Slashing Weapon . | . . . . Piercing Weapon . | . . . . Special Melee Weapon . | . . . . Unidentified Prototypes 2 | . . . 2 Parts Lost 17 | . 2 . 15 Power 5 | . 1 . 4 Propulsion 8 | . . . 8 Utility 1 | . . . 1 Weapon 3 | . 1 . 2 Highest Loss Streak 4 | . 1 . 4 To Critical Strikes 1 | . . . 1 Average Slot Usage (%) 85 | . 88 100 79 Engine 10 | . 13 14 9 Treads 1 | . . . 2 Wheel 26 | . 27 28 25 Hover 1 | . . . 1 Device 3 | . . . 5 Storage 11 | . 13 14 11 Protection 4 | . 4 14 2 Energy Gun 3 | . . . 5 Energy Cannon 4 | . . . 7 Ballistic Gun 12 | . 25 15 6 Ballistic Cannon 1 | . . . 1 Launcher 3 | . 1 12 . Naked Turns . | . . . . Heaviest Build 152 | 7 50 47 152 Greatest Support 66 | 20 26 26 66 Greatest Overweight (x) 14 | . 1 1 14 Average Overweight (x) 2 | . . 1 4 Largest Inventory Capacity 30 | 5 20 20 30 Average Capacity 25 | 5 17 20 29 Most Carried 30 | 5 20 20 30 Average Carried 23 | 4 14 19 28 Final Capacity 30 | 5 20 20 30 Final Carried 23 | 5 20 20 23 Class Distribution -------------------- 59% | Hauler-Mutant 40% | Mutant Dominant Class ---------------- Mutant | -10/Materials Mutant | -10/Mines Hauler-Mutant | -9/Materials Resources | -11 -10 -10 -9 ----------- Run | Yrd Mat Min Mat Matter Collected 1694 | 240 450 53 951 Remotely . | . . . . Salvage Created 2190 | . 426 111 1653 Parts 175 | . 35 13 127 Haulers Intercepted 3 | . . . 3 Recyclers Shooed . | . . . . Parts Field Recycled . | . . . . Retrieved Matter . | . . . . Parts Self-Destructed . | . . . . Prevented . | . . . . Kills | -11 -10 -10 -9 ------- Run | Yrd Mat Min Mat Combat Hostiles Destroyed 61 | . 14 8 39 Guns 36 | . 10 2 24 Cannons 10 | . . . 10 AOE 15 | . 4 6 5 Classes Destroyed 12 | . 6 . 6 Worker 7 | . 1 . 6 Builder 4 | . 2 1 1 Tunneler 1 | . . . 1 Hauler 3 | . . . 3 Recycler 1 | . . . 1 Operator 1 | . 1 . . Watcher 7 | . 2 . 5 Swarmer 22 | . 6 6 10 Grunt 28 | . 8 2 18 Brawler 1 | . . . 1 Protector 1 | . . . 1 Sentry 9 | . . . 9 Best Kill Streak 7 | . 5 4 7 Combat Bots Only 5 | . 4 3 5 Max Kills in Single Turn 3 | . 3 2 2 Gunslinging 1 | . . . 1 Exploded 2 | . 2 2 2 Melee . | . . . . Uniques/NPCs Destroyed . | . . . . Combat | -11 -10 -10 -9 -------- Run | Yrd Mat Min Mat Hostile Shots Fired 268 | . 63 23 182 Missed 67 | . 18 4 45 Damage Taken 2705 | . 554 169 1982 Core 625 | . 183 42 400 Absorbed by Shields . | . . . . Regen/Repaired (Parts) 138 | . 38 . 100 Core Remaining (%) 55 | 100 . 10 . Volleys Fired 198 | . 52 10 136 Largest 2 | . 2 2 2 Hottest 160 | . 50 50 160 Shots Fired 385 | . 100 18 267 Gun 250 | . 92 11 147 Cannon 108 | . . . 108 Launcher 22 | . 8 7 7 Special 5 | . . . 5 Kinetic 212 | . 92 11 109 Thermal 117 | . . . 117 Explosive 22 | . 8 7 7 Electromagnetic 34 | . . . 34 Robot Hit Streak 19 | . 11 2 19 Robot Miss Streak 11 | . 11 3 5 Penetration Max . | . . . . Secondary Targets 1 | . . . 1 Max Gunslinging Chain 1 | . . . 1 Shots Hit Robots 233 | . 50 7 176 Core Hits 133 | . 33 12 88 Critical Kills . | . . . . Critical Parts Destroyed 1 | . . . 1 Critical Strikes 2 | . . . 2 Burn 1 | . . . 1 Destroy 1 | . . . 1 Melee Attacks . | . . . . Impact . | . . . . Slashing . | . . . . Piercing . | . . . . Sneak Attacks . | . . . . Combat Hostiles . | . . . . Follow-up Attacks . | . . . . Damage Inflicted 4813 | . 1003 470 3340 Guns 2228 | . 555 79 1594 Cannons 1208 | . . . 1208 Explosions 1355 | . 448 391 516 Melee . | . . . . Ramming 22 | . . . 22 Kinetic 1831 | . 555 79 1197 Thermal 1200 | . . . 1200 Explosive 1355 | . 448 391 516 Electromagnetic 405 | . . . 405 Impact . | . . . . Slashing . | . . . . Piercing . | . . . . Highest Corruption . | . . . . Average Corruption . | . . . . Corruption Purged . | . . . . Corruption Blocked . | . . . . Overload Shots . | . . . . Overflow Damage 87 | . 11 17 59 Projectiles 18 | . . . 18 Explosions 69 | . 11 17 41 Melee . | . . . . Knockbacks 1 | . . . 1 Impact 1 | . . . 1 Kinetic . | . . . . Secondary . | . . . . Self-Inflicted Damage 305 | . 118 5 182 Shots 10 | . 4 1 5 Rammed 1 | . . . 1 Targets Rammed 1 | . . . 1 Kicked . | . . . . Crushed . | . . . . Highest Temperature 452 | . 6 4 452 Average Temperature 41 | . 3 1 44 Received Heat Transfer 894 | . 156 27 711 Siege Activations . | . . . . Robots Corrupted . | . . . . Combat Hostiles . | . . . . Parts Fried 3 | . . . 3 Impact Corruptions . | . . . . Robots Melted . | . . . . Combat Hostiles . | . . . . Parts Melted 5 | . . . 5 Heat Transferred 2672 | . . . 2672 Parts Sabotaged . | . . . . Parts Stolen . | . . . . Parts Stripped . | . . . . Power Chain Reactions . | . . . . Alert | -11 -10 -10 -9 ------- Run | Yrd Mat Min Mat Peak Influence 593 | . 279 290 593 Initial 71 | . . 71 . Average 224 | . 111 122 299 Maximum Alert Level 2 | . 1 1 2 Low Security (%) 48 | 100 94 73 24 Level 1 37 | . 5 26 53 Level 2 13 | . . . 22 Level 3 . | . . . . Level 4 . | . . . . Level 5 . | . . . . High Security . | . . . . Max Security . | . . . . Squads Dispatched 15 | . 6 . 9 Investigation 7 | . 2 . 5 Extermination . | . . . . Reinforcement 6 | . 4 . 2 Assault 2 | . . . 2 Garrison . | . . . . Intercept . | . . . . Searches Triggered . | . . . . Construction Impeded . | . . . . Haulers Reinforced . | . . . . Active Scanning Responses . | . . . . Cargo Convoy Interrupts . | . . . . Stealth | -11 -10 -10 -9 --------- Run | Yrd Mat Min Mat Distress Signals 5 | . 1 . 4 Communications Jammed . | . . . . Distress Signals . | . . . . Times Spotted 102 | . 25 8 69 Peak Tracking Total 5 | . 4 3 5 Tactical Retreats 2 | . 2 . . Traps | -11 -10 -10 -9 ------- Run | Yrd Mat Min Mat Traps Triggered 5 | . 2 . 3 Indirectly . | . . . . Trap Hack Attempts . | . . . . Triggered . | . . . . Disarmed . | . . . . Reprogrammed . | . . . . Reused . | . . . . Traps Extracted . | . . . . Installed . | . . . . Triggered . | . . . . Machines | -11 -10 -10 -9 ---------- Run | Yrd Mat Min Mat Machines Disabled 1 | . . . 1 Max in Single Turn 1 | . . . 1 Machines Repaired . | . . . . Machines Dismantled . | . . . . Machines Sabotaged . | . . . . Overloaded Fab Kills . | . . . . Hacking | -11 -10 -10 -9 --------- Run | Yrd Mat Min Mat Machines Accessed 14 | . 3 1 10 Terminals 9 | . 1 1 7 Fabricators . | . . . . Repair Stations 2 | . 1 . 1 Recycling Units 2 | . 1 . 1 Scanalyzers 1 | . . . 1 Garrison Access . | . . . . Total Hacks 34 | . 9 4 21 Successful 22 | . 7 2 13 Failed 12 | . 2 2 8 Catastrophic 2 | . . . 2 Database Lockouts . | . . . . Manual . | . . . . Terminals 21 | . 4 4 13 Fabricators . | . . . . Repair Stations 6 | . 4 . 2 Recycling Units 3 | . 1 . 2 Scanalyzers 4 | . . . 4 Garrison Access . | . . . . Terminal Hacks 9 | . 2 2 5 Record 1 | . . 1 . Alert Level 3 | . . . 3 Dispatch Records 3 | . 1 . 2 Hauler Manifests 1 | . 1 . . Zone Layout 1 | . . 1 . Fabricator Hacks . | . . . . Repair Station Hacks 6 | . 4 . 2 Scan Component 3 | . 2 . 1 Repair 2 | . 1 . 1 Refit 1 | . 1 . . Recycling Unit Hacks 3 | . 1 . 2 Report Inventory 2 | . 1 . 1 Retrieve Components 1 | . . . 1 Scanalyzer 4 | . . . 4 Insert Component 2 | . . . 2 Analyze 2 | . . . 2 Garrison Access Hacks . | . . . . Unauthorized Hacks . | . . . . Terminals . | . . . . Fabricators . | . . . . Repair Stations . | . . . . Recycling Units . | . . . . Scanalyzers . | . . . . Garrison Access . | . . . . Data Cores Recovered . | . . . . Used . | . . . . Hacking Detections 9 | . . 1 8 Full Trace Events 3 | . . 1 2 Feedback Events . | . . . . Feedback Blocked . | . . . . Robot Schematics Acquired . | . . . . Robots Built . | . . . . Authchips . | . . . . Time . | . . . . Total Robot Build Rating . | . . . . Part Schematics Acquired 1 | . . . 1 Parts Built . | . . . . Authchips . | . . . . Time . | . . . . Total Part Build Rating . | . . . . Parts Repaired 2 | . 1 . 1 Time 58 | . 26 . 32 Parts Recycled . | . . . . Recycled Matter . | . . . . Retrieved Matter . | . . . . Retrieved Components 6 | . . . 6 Parts Scanalyzed 1 | . . . 1 Part Schematics Acquired 1 | . . . 1 Parts Damaged 1 | . . . 1 Bothacking | -11 -10 -10 -9 ------------ Run | Yrd Mat Min Mat Used RIF Installer . | . . . . Robots Hacked . | . . . . Non-combat . | . . . . Combat . | . . . . Robot Hacks Applied . | . . . . Relay Couplers Released . | . . . . Fabnet Peak Effective % . | . . . . Robots Rewired . | . . . . Allies Hacked . | . . . . Hacks Repelled . | . . . . Allies | -11 -10 -10 -9 -------- Run | Yrd Mat Min Mat Total Allies 1 | . . 1 . Largest Group 1 | . . 1 . Highest-Rated Group 31 | . . 31 . Highest-Rated Ally 31 | . . 31 . Total Orders . | . . . . Ally Attacks . | . . . . Total Damage . | . . . . Kills . | . . . . Allies Corrupted . | . . . . Allies Melted . | . . . . Intel | -11 -10 -10 -9 ------- Run | Yrd Mat Min Mat Robot Analysis Total . | . . . . Derelict Logs Recovered 1 | . . 1 . Drone Launches . | . . . . Drone Recoveries . | . . . . Exploration | -11 -10 -10 -9 ------------- Run | Yrd Mat Min Mat Turns Passed 5503 | 61 1135 1035 3272 Spaces Moved 3371 | 54 879 941 1497 Core 20 | 20 . . . Treads 60 | . . . 60 Legs 49 | 34 15 . . Wheels 3242 | . 864 941 1437 Hover . | . . . . Flight . | . . . . Fastest Speed 50 | 50 90 105 138 Average Speed 132 | 94 104 105 166 Slowest Speed 625 | 120 120 105 625 Overloaded Moves . | . . . . Propulsion Burnouts . | . . . . Robots Hopped . | . . . . Cave-ins Triggered . | . . . . Exploration Rate (%) 67 | 3 94 99 75 Regions Visited 3 Branch Regions 1 Pre-discovered Areas 1 | . . 1 . Known Exits Taken . | . . . . Unknown Exits Taken 3 | 1 1 1 . Scrap Searched 1 | . . 1 . Spaces Dug 5 | . . . 5 Terrain Destroyed 146 | . 59 28 59 Melee . | . . . . Projectile 5 | . . . 5 AOE 141 | . 59 28 54 Terrain Rammed . | . . . . Walls Destroyed . | . . . . Machines Disabled . | . . . . Actions | -11 -10 -10 -9 --------- Run | Yrd Mat Min Mat Total 4032 | 62 998 970 2002 Wait 294 | . 20 11 263 Move 3368 | 53 878 940 1497 Hop . | . . . . Pick Up 64 | 5 26 2 31 Fast Attach 12 | 4 . . 8 Attach 20 | . 7 . 13 Detach 1 | . . . 1 Swap 40 | . 7 4 29 Drop 34 | . 8 3 23 Fire 198 | . 52 10 136 Melee . | . . . . Ram 1 | . . . 1 Kick . | . . . . Crush . | . . . . Escape Stasis . | . . . . Rewire . | . . . . Trap . | . . . . Miscellaneous . | . . . . Route ------- -11/Scrapyard -10/Materials (discovered 5 exits: *Mat x3 / *Min x2) -10/Mines (discovered 2 exits: *Mat x2) -9/Materials (discovered 3 exits: [*Mat] / [*Min x2]) History --------- Turn | Location | Event 14 | -11/Scrapyard | Discovered new exit (range 15) 62 | -11/Scrapyard | Entered Materials 179 | -10/Materials | Discovered new exit (range 7) 227 | -10/Materials | Discovered new exit (range 12) 310 | -10/Materials | Build established: Mutant 399 | -10/Materials | Discovered new exit (range 16) 713 | -10/Materials | Discovered new exit (range 5) 806 | -10/Materials | Discovered new exit (range 7) 881 | -10/Materials | Repaired Assault Rifle 951 | -10/Materials | Core integrity fell below 50% 1197 | -10/Materials | Entered Mines 1317 | -10/Mines | Core integrity fell below 20% 1402 | -10/Mines | Discovered new exit (range 15) 1792 | -10/Mines | Discovered new exit (range 18) 1940 | -10/Mines | Received a Mining Laser from a helpful Derelict 2232 | -10/Mines | Entered Materials 2232 | -9/Materials | Evolved 2 slots: Propulsion x1, Utility x1 2524 | -9/Materials | Build established: Hauler-Mutant 2590 | -9/Materials | Discovered new exit (range 7) 3506 | -9/Materials | Core integrity fell below 50% 3583 | -9/Materials | Repaired Shotgun 3987 | -9/Materials | Discovered new exit (range 4) 4490 | -9/Materials | Discovered new exit (range 12) 5032 | -9/Materials | First assault squad dispatched 5138 | -9/Materials | Core integrity fell below 20% 5171 | -9/Materials | Lost 4 parts (2n1u1w) 5504 | -9/Materials | Destroyed by G-34 Mercenary with Small Laser Last Messages --------------- it now. Acquired Adv. Treads. Different forms of propulsion may not be used simultaneously, Wheel automatically deactivated. Dropped Wheel. Acquired Adv. Treads. Dropped Aluminum Leg. Acquired Recoil Stabilizer. Acquired Imp. Weapon Shielding. ALERT: Significant disruption in Zone 1T, assault force dispatched. Dropped Imp. Hover Unit. Dropped Imp. Flight Unit. C-30 ARC bursts open, deploying its payload. G-34 Mercenary unfolds itself. Lgt. Ion Engine destroyed. Lrg. Battery melted. Power Amplifier melted. I-25 Savior destroyed. Map ----- +----------------------------------------------------+ | ???????????# """ #?????????# #????????????????? | | ???????????# """ #?????????# #????????????????? | | ???????????# " #?????????# #????????????????? | | ???????????# #?????????# #???##+##????????? | | ???????????# #????###### ##### #????????? | | ???????????# #???### # #????????? | | ???????????########???#" =%% #### +????????? | | ??????????????????????#%# # ##+###### #????????? | | ??????????????????????#"### =% # #????????? | | ??????????????????????# # # [ # ???????? | | ??????????????????????#[# # # ??????? | | ??????????????????????# # # # ?????? | | ??????????????????????#%# # " # ####+????? | | ???????????????????#### # # T # #????????? | | ???????????????????# ## #[# " # #????????? | | ???????????????????# # #[# # #????????? | | ???????????????????# ## [[########### +????????? | | ???????????????????####[# #???????? #????????? | | ????????????????????# # # ##????????? #????????? | | ????????????????????# #% #????????? #????????? | | ????????????????????### #????????? ?????????? | | ????????????????????### ####?????????????????????? | | ????????????????????# gg ##?????????????????????? | | ????????????????????# g #??????????????????????? | | ????????????????????# =%g#???#####??????????????? | | ????????????????????# !@#???# ==#??????????????? | | ????????????????????# #???# ==#??????????????? | | ????????????????????## ##???#=!!#??????????????? | | ?????????????????????# ###### ! #??????????????? | | ?????????????????????# ! #??????????????? | | ?????????????????????# !!#??????????????? | | ?????????????????????# #####??????????????? | | ?????????????????????######+#+#??????????????????? | | ?????????????????????### = #??????????????????? | | ?????????????????????# " == #??????????????????? | | ?????????????????????##" #??????????????????? | | ??????????????????????#" ! #??????????????????? | | ??????????????????????#" / #??????????????????? | | ??????????????????????## #??????????????????? | | ???????????????????????########??????????????????? | | ?????????????????????????????????????????????????? | | ?????????????????????????????????????????????????? | | ?????????????????????????????????????????????????? | | ?????????????????????????????????????????????????? | | ?????????????????????????????????????????????????? | | ?????????????????????????????????????????????????? | | ?????????????????????????????????????????????????? | | ?????????????????????????????????????????????????? | | ?????????????????????????????????????????????????? | | ?????????????????????????????????????????????????? | +----------------------------------------------------+ Best States ------------- Heat Dissipation 42 Energy Generation 10 Energy Capacity 250 Matter Stores 300 Matter Capacity 300 Sight Range 18 Terrain Scan Density 10 Armor Coverage 150 Evasion (%) 55 Recoil Reduction 3 Item Schematics ----------------- Imp. Light Cannon | -9/Materials | Scanalyzed Robot Schematics ------------------ None Fabricated ------------ Nothing Alien Tech Used ----------------- None Achievements -------------- None Challenges ------------ None Game ------ Seed SensorMappingSystem Manual? 0 Play Time 00:51:29 Cumulative 9.3 hours Start 2024.07.01 @ 00:03:21 End 2024.07.04 @ 21:26:17 Sessions 3 Manual Loads 0 Difficulty Rogue Special Mode None Game No. 12 Rogue 12 Adventurer 0 Explorer 0 Win Type - Total 0 Types 0/0/0/0/0/0/0/0/0 Lore% 10 Gallery% 12 Achievement% 12 Wizard Run 0 Options --------- Layout 2 ASCII 0 Keyboard 0 Movement Arrows Keybinds 0 Fullscreen 1 Font 16/SmallcapsGlow Map View 25x24 Zoom Use 92% Tactical HUD 0 Map Filters NONE Filters NONE Steam SD RUN: 95d95cb5-1b46-4ae4-a81c-9c5cffac8e90